Workbook

Sheet Instructions
B6: Grazing Management Tools
B7: Version 1.1 March 2018
B9: The purpose of the Grazing Management Tools is to assist producers to optimise production of brassica forage crops, better understand the costs
B10: of different feeds and provide guidance on the financial implications of trading of livestock (sheep and beef).
B11: Clicking on the blue buttons below will take you to the tool you are interested in.
B12: When you are in a tool, to return to this page click on the blue "Instructions" button
B13: In each tool, the green cells require you to input information, while the yellow cells automatically calculate answers.
B14: To prevent users over-writing formulas in the tools, the tools are protected, so that only the green cells can be edited by users. However, for those proficient in excel
B15: who may wish to modify the tools the password to unprotect tools is "livestock". It is recommended that users who do modify the tool retain a back up copy of the original.
B20: The Feed Requirements Tool calculates how much dry matter is required to increase an animal's live weight, including the maintenance requirements.
B25: The Brassica Forage Crop Planner is a guide to assist in planning animal numbers and finishing times for optimal liveweight gains on brassica crops.
B26: This tool has 2 tabs - the Brassica Forage Crop Planner and the NOTES TO CONSIDER tabs. It is recommended to read the 'notes to consider' before trying to use the tool.
B31: The Beef Marginal Profit Calculator is designed as a guide to assist with making the decision of whether to sell your cattle now or to sell later. It can be used with the feed cost calculator.
B36: The Sheep Marginal Profit Calculator is designed as a guide to assist with making the decision of whether to sell your sheep now or to sell later. It can be used with the feed cost calculator.
B41: The Feed Cost Calculator is a tool designed to make it easy to calculate the cost of feed ($/kg DM) for silage, hay, grains and pellets, nitrogen application to pasture and irrigation of pasture.
B46: The Beef Marginal Profit Calculator Demo has been included to demonstrate the outcomes which can be generated using on-farm data.
B51: The Sheep Marginal Profit Calculator Demo has been included to demonstrate the outcomes which can be generated using on-farm data.
B53: Disclaimer
B54: Macquarie Franklin, who developed the Grazing Management Tools, expressly disclaim all and any legal liability and responsibility whatsoever arising from or connected with:
B55: • the accuracy, reliability, validity, currency or completeness of the base assumptions supplied;
B56: • the accuracy, reliability, validity, currency or completeness of any results obtained from the use of the tool;
B57: • the consequences of anything done or omitted to be done by any person, either in whole or in part, in reliance of any such information, model spreadsheet or results; and
B58: • any combination of any of the above.
B60: Copyright

Sheet Feed Requirements Tool
B1: Feed Requirements Tool
B5: To use this tool, insert your own figures into the green boxes. Figures highlighted in the yellow boxes will be automatically calculated for you.
B8: Dry matter requirement tool
B9: Animal class
B10: Liveweight (kg)
B11: Liveweight gain required (kg/day)
B12: Dry matter required (kg/head/day) | C12: =IFERROR(((VLOOKUP(C9,data!A3:B4,2,FALSE))+(C11*4)),0) -> 0
B14: Please note that the feed requirement tool is based on 1kg DM = 10.5ME

Sheet data (hidden)
A2: Animal class
A3: Cattle | B3: =('Feed Requirements Tool'!C10/100)+1 -> 1
A4: Sheep | B4: =('Feed Requirements Tool'!C10*2)/100 -> 0

Sheet Brassica Forage Crop Planner
B1: Brassica Forage Crop Planner - Multi Graze
B4: To use this tool, insert your own figures into the green boxes. Figures highlighted in the yellow boxes will be automatically calculated for you.
B7: Crop Data
B8: Forage crop type
B9: Forage crop variety
B10: Multiple Grazing Option
B11: Paddock area | D11: ha
B12: Seed sowing rate | D12: kg/ha
B13: Total seed required | C13: =SUM(C12*C11) -> 0 | D13: kg
B14: Crop maturity period | D14: days
B15: Crop regrowth period | D15: days
B16: Sowing date
B18: 1st Grazing | F18: Yield Assessment Tool (further detail in 'notes to consider tab' on how to use this tool)
B19: Start grazing date | C19: =C16+C14 -> 00:00:00 | F19: Sample wet weight #1 | H19: kg/m2
B20: Finish grazing date | C20: =C19+C34 -> 00:00:00 | F20: Sample wet weight #2 | H20: kg/m2
B21: Predicted/measured grazing crop yield | D21: kg DM/ha | F21: Sample wet weight #3 | H21: kg/m2
B22: Predicted/measured crop growth rate during grazing | D22: kg DM/ha/day | F22: Sample wet weight #4 | H22: kg/m2
B23: Total predicted/measured grazing crop yield | C23: =SUM(C21*C11)+(C22*C34*C11) -> 0 | D23: kg DM | F23: Sample wet weight #5 | H23: kg/m2
B24: Livestock type | F24: Average wet weight | G24: =IFERROR((AVERAGE(G19:G23)),0) -> 0 | H24: kg/m2
B25: Stock numbers
B26: Grazing efficiency | F26: Total average wet weight | G26: =G24*10000 -> 0 | H26: kg/ha
B27: Daily feed requirement | D27: kg DM/head/day
B28: Per head crop daily allocation | C28: =IFERROR((C27/C26),0) -> 0 | D28: kg DM/head/day | F28: Crop DM | H28: see notes to consider sheet
B29: Mob crop daily allocation | C29: =C28*C25 -> 0 | D29: kg DM/mob/day
B30: Mob crop area allocation | C30: =IFERROR((C29/(C21)),0) -> 0 | D30: ha/day | F30: Measured crop yield | G30: =G26*G28 -> 0 | H30: kg DM/ha
B31: Rumen adjustment period | D31: days
B32: Full crop allocation period | C32: =IFERROR((SUM((C11/C30)-(C31*0.5*C30))),0) -> 0 | D32: days
B34: Total mob days first grazing | C34: =C32+C31 -> 0 | D34: days
B36: 2nd Grazing | F36: Yield Assessment Tool (further detail in 'notes to consider tab' on how to use this tool)
B37: Start grazing date | C37: =C20+C15 -> 00:00:00 | F37: Sample wet weight #1 | H37: kg/m2
B38: Finish grazing date | C38: =IFERROR((C37+C52),0) -> 00:00:00 | F38: Sample wet weight #2 | H38: kg/m2
B39: Predicted/measured grazing crop yield | D39: kg DM/ha | F39: Sample wet weight #3 | H39: kg/m2
B40: Predicted/measured crop growth rate during grazing | D40: kg DM/ha/day | F40: Sample wet weight #4 | H40: kg/m2
B41: Total predicted/measured grazing crop yield | C41: =IFERROR(((C39*C11)+(C40*C52*C11)),0) -> 0 | D41: kg DM | F41: Sample wet weight #5 | H41: kg/m2
B42: Livestock type | F42: Average wet weight | G42: =IFERROR((AVERAGE(G37:G41)),0) -> 0 | H42: kg/m2
B43: Stock numbers
B44: Grazing efficiency | F44: Total average wet weight | G44: =G42*10000 -> 0 | H44: kg/ha
B45: Daily feed requirement | D45: kg DM/head/day
B46: Per head crop daily allocation | C46: =IFERROR((C45/C44),0) -> 0 | D46: kg DM/head/day | F46: Crop DM | H46: see notes to consider sheet
B47: Mob crop daily allocation | C47: =C46*C43 -> 0 | D47: kg DM/mob/day
B48: Mob crop area allocation | C48: =IFERROR((C47/C39),0) -> 0 | D48: ha/day | F48: Measured crop yield | G48: =G44*G46 -> 0 | H48: kg DM/ha
B49: Rumen adjustment period | C49: 0 | D49: days
B50: Full crop allocation period | C50: =IFERROR(((C11/C48)+(C49*0.5*C48)),0) -> 0 | D50: days
B52: Total mob days second grazing | C52: =C49+C50 -> 0 | D52: days

Sheet NOTES TO CONSIDER
A1: Notes to consider for the Brassica Forage Crop Planner
A2: Beef cattle should only be allocated a maximum of 70% of their total daily dietary DM intake as a forage brassica.
A4: Dairy cattle (milking) should only be allocated a maximum of 33% of their total daily dietary DM intake as a forage brassica crop. Avoid feeding brassicas for 2 weeks after cows have calved.
A7: Dairy cattle (dry) should only be allocated a maximum of 70% of their total daily dietary DM intake as a forage brassica crop. During late pregnancy avoid feeding brassicas to cows due to the increased risk of metabolic disorders.
A10: Sheep, as ewes (dry), lambs and wethers can be allocated up to 90-100% of their daily dietary DM intake as a forage brassica crop.
A12: Ewes in late pregnancy and during lambing should not be fed brassicas due to the risk of calcium deficiency and other metabolic disorders.
A14: Seek professional animal nutrition advice to ensure the livestock feed allocations match the animal performance expectations, and the risk of negative animal health issues are able to be prevented.
A16: The rumen adjustment period is the time required for an animal's rumen microbes to be able to fully breakdown and enable the absorption of the nutrients within the brassica feed. Typically this will take at least 7 days.
A19: Seed sowing rates vary with the type of forage crops being grown, seed coating used, sowing method and seedbed quality. Typical rates are as follows:
A21: Fodder radish: 3-4 kg/ha
A22: Leafy turnip: 2-3 kg/ha
A23: Kale: 3-5 kg/ha
A24: Rape: 3-5 kg/ha
A25: Swedes: 1.5-2 kg/ha
A26: Turnips: 1.5 - 2kg/ha
A27: For a well prepared seedbed, and if drilling seed, use the lower sowing rate. Seek agronomic advice for confirmation.
A29: Yield Assessment Tool
A30: 1. Obtain 3 to 5 representative 1m2 crop samples. Avoid sampling near water troughs, gate ways or areas of the crop that are not typical of the majority of the paddock.
A32: 2. Weigh each of the samples to obtain a wet weight yield 3. Use the yield assessment tool (in the Brassica Forage Crop Planner Tool) to give an accurate value for crop yield (kg DM/ha)
A35: Typical brassica crop dry matter values are;
A36: Fodder radish: 13%
A37: Kale: 13%
A38: Leafy turnip: 13%
A39: Rape: 13%
A40: Swedes: 10%
A41: Turnips: 10%
A42: A feed test can be used to determine the exact crop dry matter values.
A43: Grazing efficiency varies with the grazing method, crop quality & maturity (rotting bulbs & decayed leaves) and weather conditions during grazing, consider;
A45: Strip grazing: 80-90% utilisation
A46: Set stocking: 70-80% utilisation
A47: Over mature crop: reduce utilisation by 10-20%
A48: Waterlogged soils: reduce utilisation by 10-20%
A49: The re-growth period for fodder radish, leafy turnip and rape crops can vary considerably depending upon seasonal conditions, available soil moisture and soil fertility (especially nitrogen). From mid spring to mid autumn, with good soil fertility and under irrigation it is reasonable to consider the opportunity to re-graze these crops in approximately 40-50 days. During cooler growing conditions the re-growth period can be extended by up to double the time frame. If the soils become too wet or too dry then the brassica recovery post grazing can be minimal.
A56: Ensure all livestock grazing on forage brassica crops have unrestricted access to water.

Sheet Beef Marginal Profit Calculator
B1: Beef Trading Marginal Profit Calculator - sell now or sell later
B4: To use this tool, insert your own figures into the green boxes. Figures highlighted in the yellow boxes will be automatically calculated for you.
B5: In the composition and cost of diet table, the pale green cells ("your $/kg DM") are linked to the Feed Cost Calculator. Either use the Feed Cost Calculator to determine your own feed costs, or
B6: average feed costs will be used (the grey cells, "average $/kg DM")
B8: Sell Now
B9: Current individual live weight | D9: x price $/kg LW | F9: = | G9: =C9*E9 -> 0 | H9: per head
B10: Sell now date
B11: Number of animals | G11: =G9*C11 -> 0 | H11: mob value
B13: Weight Gain
B14: Number of days to sale if selling later | D14: days
B15: Sell later date | C15: =C10+C14 -> 00:00:00
B16: Target weight at sale | D16: kg LW/head
B17: Average weight now | C17: =C9 -> 0 | D17: kg LW/head
B18: Average liveweight gain | C18: =IFERROR((SUM((C16-C17)/C14)),0) -> 0 | D18: kg LWG/day
B19: Average daily feed requirement per head | C19: =L24 -> 1 | D19: kg DM/hd/day
B21: Composition and Cost of Diet | C21: kg DM/day | D21: your $/kg DM | E21: average $/kg DM | F21: $/day/head | I21: Average Daily Feed Requirement | L21: kg DM/hd/day
B22: Dryland pasture | D22: 0.02 | E22: 0.02 | F22: =IF(D22>0,D22*C22,E22*C22) -> 0 | I22: Maintenance | L22: =SUM(((C16/2)+(C17/2))/100)+1 -> 1
B23: Dryland pasture + N fert | D23: =D22+'Feed Cost Calc'!K23 -> 0.02 | E23: 0.17 | F23: =IF(D23>0,D23*C23,E23*C23) -> 0 | I23: LWG | L23: =C18*4 -> 0
B24: Irrigated pasture | D24: ='Feed Cost Calc'!G44 -> 0 | E24: 0.12 | F24: =IF(D24>0,D24*C24,E24*C24) -> 0 | I24: Total Daily Requirement | L24: =SUM(L22:L23) -> 1
B25: Irrigated pasture + N fert | D25: ='Feed Cost Calc'!G44+'Feed Cost Calc'!K23 -> 0 | E25: 0.29 | F25: =C25*E25 -> 0
B26: Brassica crop | D26: ='Feed Cost Calc'!C69 -> 0 | E26: 0.15 | F26: =C26*E26 -> 0
B27: Grain/pellets | D27: ='Feed Cost Calc'!K40 -> 0 | E27: 0.35 | F27: =C27*E27 -> 0
B28: Hay | D28: ='Feed Cost Calc'!G26 -> 0 | E28: 0.35 | F28: =C28*E28 -> 0
B29: Silage | D29: ='Feed Cost Calc'!C26 -> 0 | E29: 0.6 | F29: =C29*E29 -> 0
B30: Total daily allocation | C30: =SUM(C22:C29) -> 0 | F30: =SUM(F22:F29) -> 0
B32: Balance Sheet
B33: Income
B34: Liveweight | C34: =C16 -> 0 | D34: x price $/kg LW | F34: = | G34: =C34*E34 -> 0 | H34: per head
B35: Number of animals finished
B36: Production Cost
B37: Number of days to sale | C37: =C14 -> 0 | D37: x feed cost $/head/day | E37: =F30 -> 0 | F37: plus additional labour ($/head) | H37: plus additional animal health ($/head) | J37: = | K37: =(C37*E37)+G37+I37 -> 0 | L37: per head
B38: Margin
B39: Gross margin income (per head) | C39: =G34 -> 0 | D39: less buy in price | E39: =G9 -> 0 | F39: less production costs | G39: =K37 -> 0 | H39: less finance costs | J39: = | K39: =SUM(C39-E39-G39-I39) -> 0 | L39: per head
B41: Gross margin income (per mob) | C41: =C39*C35 -> 0 | D41: less buy in price | E41: =E39*C11 -> 0 | F41: less production costs | G41: =G39*C35 -> 0 | H41: less finance costs | I41: =I39*C11 -> 0 | J41: = | K41: =SUM(C41-E41-G41-I41) -> 0 | L41: per mob
B44: Additional considerations
B45: This margin does not include any transport and sales commission costs.
B47: Ensure the average liveweight gain of your animals is realistic and achievable, relative to feed quality and quatity (<2.0kg/day). Your liveweight gain is highlighted in orange, so you can quickly check it.
B49: Compostion and cost of diet is calculated based on kg dry matter intake per day per head. The pale green cells ("your $/kg DM") are linked to the Feed Cost Calculator. Either use the Feed Cost Calculator to determine your own feed costs, or
B50: average feed costs will be used (grey cells, "average $/kg DM")
B52: Total daily feed requirement MUST be the same value as total daily allocation. If animals are underfed, liveweight gain and selling date will not be reached. If animals are overfed, the gross margins will not be accurate
B53: and animals may fall outside market specs, resulting in price penalties.
B55: Be aware and understand the opportunity cost of finishing animals and the negative impact this may have on total feed availability on your property, and feed allocations to other animals (e.g. the breeding herd)
B57: Are you sure about the sell price ?
B59: What happens if your feed cost increases ?
B61: What if some of the animals die? Have you considered a mortality percentage when entering the number of animals that will be finished into the balance sheet?

Sheet Sheep Marginal Profit Calculato
B1: Sheep Trading Marginal Profit Calculator - sell now or sell later
B4: To use this tool, insert your own figures into the green boxes. Figures highlighted in the yellow boxes will be automatically calculated for you.
B5: In the composition and cost of diet table, the pale green cells ("your $/kg DM") are linked to the Feed Cost Calculator. Either use the Feed Cost Calculator to determine your own feed costs, or
B6: average feed costs will be used (the grey cells, "average $/kg DM")
B8: Sell Now
B9: Current live weight | D9: x price $/kg LW | F9: = | G9: =C9*E9 -> 0 | H9: per head
B10: Sell now date
B11: Number of animals | G11: =G9*C11 -> 0 | H11: mob value
B13: Weight Gain
B14: Number of days to sale if selling later | D14: days
B15: Sell later date | C15: =C10+C14 -> 00:00:00
B16: Target weight at sale | D16: kg LW/head
B17: Average weight now | C17: =C9 -> 0 | D17: kg LW/head
B18: Average liveweight gain | C18: =IFERROR(((C16-C17)/C14),0) -> 0 | D18: kg LWG/day
B19: Average daily feed requirement per head | C19: =L24 -> 0 | D19: kg DM/hd/day
B21: Composition and Cost of Diet | C21: kg DM/day | D21: your $/kg DM | E21: average $/kg DM | F21: $/day/head | J21: Average Daily Feed Requirements | L21: kg DM/hd/day
B22: Dryland pasture | D22: 0.02 | E22: 0.02 | F22: =IF(D22>0,D22*C22,E22*C22) -> 0 | J22: Maintenance | L22: =(((C16/2)+(C17/2))*2)/100 -> 0
B23: Dryland pasture + N fert | D23: =D22+'Feed Cost Calc'!K21 -> 0.02 | E23: 0.17 | F23: =IF(D23>0,D23*C23,E23*C23) -> 0 | J23: LWG | L23: =C18*4 -> 0
B24: Irrigated pasture | D24: ='Feed Cost Calc'!G42 -> 0 | E24: 0.12 | F24: =IF(D24>0,D24*C24,E24*C24) -> 0 | J24: Total Daily Requirement | L24: =SUM(L22:L23) -> 0
B25: Irrigated pasture + N fert | D25: ='Feed Cost Calc'!G42+'Feed Cost Calc'!K21 -> 0 | E25: 0.29 | F25: =C25*E25 -> 0
B26: Brassica crop | D26: ='Feed Cost Calc'!C67 -> 0 | E26: 0.15 | F26: =C26*E26 -> 0
B27: Grain/pellets | D27: ='Feed Cost Calc'!K38 -> 0 | E27: 0.35 | F27: =C27*E27 -> 0
B28: Hay | D28: ='Feed Cost Calc'!G24 -> 0 | E28: 0.35 | F28: =C28*E28 -> 0
B29: Silage | D29: ='Feed Cost Calc'!C24 -> 0 | E29: 0.6 | F29: =C29*E29 -> 0
B30: Total daily allocation | C30: =SUM(C22:C29) -> 0 | F30: =SUM(F22:F29) -> 0
B32: Balance Sheet
B33: Income
B34: Liveweight | C34: =C16 -> 0 | D34: x price $/kg LW | F34: = | G34: =C34*E34 -> 0 | H34: per head
B35: Number of animals finished
B36: Production Cost
B37: Number of days to sale | C37: =C14 -> 0 | D37: x feed cost $/head/day | E37: =F30 -> 0 | F37: plus additional labour ($/head) | H37: plus additional animal health ($/head) | L37: = | M37: =(E37*C37)+I37+G37 -> 0 | N37: per head
B38: Margin
B39: Gross margin income (per head) | C39: =G34 -> 0 | D39: less buy in price | E39: =G9 -> 0 | F39: less production costs | G39: =M37 -> 0 | H39: less finance costs | J39: plus skin value | L39: = | M39: =(C39-(E39+G39+I39))+K39 -> 0 | N39: per head
B41: Gross margin income (per mob) | C41: =C39*C35 -> 0 | D41: less buy in price | E41: =E39*C11 -> 0 | F41: less production costs | G41: =G39*C35 -> 0 | H41: less finance costs | I41: =I39*C11 -> 0 | J41: plus skin value | K41: =K39*C35 -> 0 | L41: = | M41: =(C41-(E41+G41+I41))+K41 -> 0 | N41: per mob
B43: Additional considerations
B44: This margin does not include any transport and sales commission costs.
B46: Ensure the average liveweight gain of your animals is realistic and achievable, relative to feed quality and quatity (<0.4kg/day). Your liveweight gain is highlighted in orange, so you can quickly check it.
B48: Compostion and cost of diet is calculated based on kg dry matter intake per day per head. The pale green cells ("your $/kg DM") are linked to the Feed Cost Calculator. Either use the Feed Cost Calculator to determine your own feed costs, or
B49: average feed costs will be used (grey cells, "average $/kg DM")
B51: Total daily feed requirement MUST be the same value as total daily allocation. If animals are underfed, liveweight gain and selling date will not be reached. If animals are overfed, the gross margins will not be accurate
B52: and animals may fall outside market specs, resulting in price penalties.
B54: Be aware and understand the opportunity cost of finishing animals and the negative impact this may have on total feed availability on your property, and feed allocations to other animals (e.g. the breeding herd)
B56: Are you sure about the sell price ?
B58: What happens if your feed cost increases ?
B60: What if some of the animals die? Have you considered a mortality percentage when entering the number of animals that will be finished into the balance sheet?
B61: Are you sure about the sell price ?
B63: What happens if your feed cost increases ?
B65: What if some of the animals die? Have you considered a mortality percentage when entering the number of animals that will be finished into the balance sheet?

Sheet Feed Cost Calc
B1: Feed Cost Calculator
B4: To use this tool, insert your own figures into the green boxes. Figures highlighted in the yellow boxes will be automatically calculated for you.
B5: Use the feed wastage rules of thumb table to estimate the waste at feed out for silage, hay, and grain/pellets (wastage varies depending on the method of feeding used)
B6: For irrigation costing it is recommended to use a full season of data (i.e. amount of water applied and amount of feed consumed).
B8: Silage | F8: Hay | J8: N Fertiliser | N8: Feed wastage rules of thumb (%)
D9: units | H9: units | L9: units | N9: Use this information when estimating the waste at feed out
B10: Mow, rake, bale, wrap & transport | D10: $/bale | F10: Mow, rake, bale & transport | H10: $/bale | J10: Fert cost | L10: $/T | N10: Feed ring | O10: 15
B11: Feeding cost/bale | D11: $/bale | F11: Feeding cost/bale | H11: $/bale | J11: Spreading cost | L11: $/ha | N11: Lick feeder | O11: 5
B12: Cost per bale | C12: =C10+C11 -> 0 | D12: $/bale | F12: Cost per bale | G12: =G10+G11 -> 0 | H12: $/bale | N12: Trail grain | O12: 20
J13: Fert rate | L13: kg/ha | N13: Trail hay or silage | O13: 30
B14: Bale wet weight | D14: kg/bale | F14: Bale wet weight | H14: kg/bale | J14: Fert analysis | L14: % N | N14: Trough | O14: 10
B15: Silage DM | D15: % | F15: Hay DM | G15: 0.4 | H15: % | J15: N Applied | K15: =K14*K13 -> 0 | L15: kg/ha
B16: Silage DM per bale | C16: =C14*C15 -> 0 | D16: kg DM/bale | F16: Hay DM per bale | G16: =G14*G15 -> 0 | H16: kg DM/bale | J16: DM response (typically 10:1 for pasture) | L16: :1
J17: DM grown | K17: =K15*K16 -> 0 | L17: kg/DM
B18: Cost per kg DM | C18: =IFERROR(C12/C16,0) -> 0 | D18: $/kgDM | F18: Cost per kg DM | G18: =IFERROR(G12/G16,0) -> 0 | H18: $/kg DM
J19: N Cost | K19: =IFERROR((K10/(K14*1000)),0) -> 0 | L19: $/kg
B20: Energy value of silage | D20: MJ ME/kg DM | F20: Energy value of hay | H20: MJ ME/kg DM | J20: N Cost | K20: =K19*K15 -> 0 | L20: $/ha
J21: N + spreading cost | K21: =K20+K11 -> 0 | L21: $/ha
B22: Adjusted cost | C22: =IFERROR((C18/(C20/13)),0) -> 0 | D22: $/kg DM | F22: Adjusted cost | G22: =IFERROR((G18/(G20/13)),0) -> 0 | H22: $/kg DM
J23: Cost as fed | K23: =IFERROR((K21/K17),0) -> 0 | L23: $/kg DM
B24: Waste at feed out | D24: % | F24: Waste at feed out | H24: %
B26: Cost as fed | C26: =IFERROR((C22/(1-C24)),0) -> 0 | D26: $/kg DM | F26: Cost as fed | G26: =G22/(1-G24) -> 0 | H26: $/kg DM
B28: Brassica | F28: Irrigation (pasture or clover) | J28: Grain/Pellets
D29: units | H29: units | L29: units
B30: Crop yield (wet weight) | D30: kg/ha | F30: Pasture consumed | H30: kg DM/ha | J30: Cost per tonne wet weight | L30: $/T
F31: Water applied (100mm=1ML) | H31: ML/ha | J31: Grain DM | L31: %
B32: Paddock preparation | J32: Grain/pellets DM per tonne | K32: =K31*1000 -> 0 | L32: kg DM/T
B33: Application + chemical | D33: $/ha | F33: Water delivery | H33: $/ML
B34: Initial cultivation | D34: $/ha | F34: Water application | H34: $/ML | J34: Energy value of grain/pellets | L34: MJ ME/kg DM
B35: Seed
B36: Sowing rate | D36: kg/ha | F36: Irrigated pasture cost | G36: =(G31*G33)+(C26*G34) -> 0 | H36: $/ha | J36: Cost per kg DM | K36: =(K30/1000)*K31 -> 0 | L36: $/kg
B37: Seed cost | D37: $/ha
B38: Sowing (one pass) | F38: Cost per kg DM | G38: =IFERROR(G36/G30,0) -> 0 | H38: $/kg DM | J38: Waste at feed out | L38: %
B39: Airseed + cultivation | D39: $/ha
F40: Energy value of irrigated pasture | H40: MJ ME/kg DM | J40: Cost as fed | K40: =SUM(K36/(1-K38)) -> 0 | L40: $/kg DM
B41: Fertiliser at sowing
B42: DAP | D42: $/T | F42: Adjusted cost | G42: =IFERROR(((G38)/(G40/13)),0) -> 0 | H42: $/kg DM
B43: Rate | D43: kg/ha
B44: Fertiliser - topdressing | F44: Cost as fed | G44: =G42 -> 0 | H44: $/kg DM
B45: Urea | D45: $/T
B46: Rate | D46: kg/ha
B48: Pest Control (chem + application)
B49: Cutworm
B50: Chlorprifos+ application | D50: $/ha
B51: Diamond Back Moth
B52: SuccessNEO+application | D52: $/ha
B54: Irrigation
B55: Water delivery | D55: $/ML
B56: Water application | D56: $/ML
B57: Water applied (100mm=1ML) | D57: ML/ha
B59: Crop Cost | C59: =C33+C34+(C36*C37)+C39+((C42/1000)*C43)+((C45/1000)*C46)+C50+C52+((C55*C57)+(C56*C57)) -> 0 | D59: $/kg DM
B61: Cost per kg DM | C61: =IFERROR((C59/C30),0) -> 0 | D61: $/kg DM
B63: Energy value of crop | D63: MJ ME/kg DM
B65: Adjusted cost | C65: =IFERROR(((C61/(C63/13))),0) -> 0 | D65: $/kg DM
B67: Waste at feed out (refer to Notes to Consider tab for more information) | D67: %
B69: Cost as fed | C69: =(C65)/(1-C67) -> 0 | D69: $/kg DM

Sheet Beef Marginal Profit Demo
B1: Beef Trading Marginal Profit Calculator Demo - sell now or sell later
B4: To use this tool, insert your own figures into the green boxes. Figures highlighted in the yellow boxes will be automatically calculated for you.
B5: In the composition and cost of diet table, the pale green cells ("your $/kg DM") are linked to the Feed Cost Calculator. Either use the Feed Cost Calculator to determine your own feed costs, or
B6: average feed costs will be used (the grey cells, "average $/kg DM")
B8: Sell Now
B9: Current individual live weight | C9: 350 | D9: x price $/kg LW | E9: 3 | F9: = | G9: =C9*E9 -> 1050 | H9: per head
B10: Sell now date | C10: 2018-03-02
B11: Number of animals | C11: 100 | G11: =G9*C11 -> 105000 | H11: mob value
B13: Weight Gain
B14: Number of days to sale if selling later | C14: 50 | D14: days
B15: Sell later date | C15: =C10+C14 -> 2018-04-21
B16: Target weight at sale | C16: 450 | D16: kg LW/head
B17: Average weight now | C17: =C9 -> 350 | D17: kg LW/head
B18: Average liveweight gain | C18: =SUM((C16-C17)/C14) -> 2 | D18: kg LWG/day
B19: Average daily feed requirement per head | C19: =K24 -> 13 | D19: kg DM/hd/day | E19: daily feed requirement and total kg DM/day in
B21: Composition and Cost of Diet | C21: kg DM/day | D21: your $/kg DM | E21: average $/kg DM | F21: $/day/head | J21: Average Daily Feed Requirements | K21: kg DM/hd/day
B22: Dryland pasture | C22: 10.5 | D22: 0.02 | E22: 0.02 | F22: =IF(D22>0,D22*C22,E22*C22) -> 0.21 | H22: Maintenance | K22: =SUM(((C16/2)+(C17/2))/100)+1 -> 5
B23: Dryland pasture + N fert | D23: =D22+'Feed Cost Calc'!K23 -> 0.02 | E23: 0.17 | F23: =IF(D23>0,D23*C23,E23*C23) -> 0 | H23: LWG | K23: =C18*4 -> 8
B24: Irrigated pasture | D24: ='Feed Cost Calc'!G44 -> 0 | E24: 0.12 | F24: =IF(D24>0,D24*C24,E24*C24) -> 0 | H24: Total Daily Requirement | K24: =SUM(K22:K23) -> 13
B25: Irrigated pasture + N fert | D25: ='Feed Cost Calc'!G44+'Feed Cost Calc'!K23 -> 0 | E25: 0.29 | F25: =C25*E25 -> 0
B26: Brassica crop | D26: ='Feed Cost Calc'!C69 -> 0 | E26: 0.15 | F26: =C26*E26 -> 0
B27: Grain/pellets | D27: ='Feed Cost Calc'!K40 -> 0 | E27: 0.35 | F27: =C27*E27 -> 0
B28: Hay | D28: ='Feed Cost Calc'!G26 -> 0 | E28: 0.35 | F28: =C28*E28 -> 0
B29: Silage | C29: 2.5 | D29: ='Feed Cost Calc'!C26 -> 0 | E29: 0.6 | F29: =C29*E29 -> 1.5
B30: Total daily allocation | C30: =SUM(C22:C29) -> 13 | F30: =SUM(F22:F29) -> 1.71
B32: Balance Sheet
B33: Income
B34: Live weight | C34: =C16 -> 450 | D34: x price $/kg LW | E34: 3 | F34: = | G34: =C34*E34 -> 1350 | H34: per head
B35: Number of animals finished | C35: 99
B36: Production Cost
B37: Number of days to sale | C37: =C14 -> 50 | D37: x feed cost $/head/day | E37: =F30 -> 1.71 | F37: plus additional labour ($/head) | H37: plus additional animal health ($/head) | J37: = | K37: =(C37*E37)+G37+I37 -> 85.5 | L37: per head
B38: Margin
B39: Gross margin income (per head) | C39: =G34 -> 1350 | D39: less buy in price | E39: =G9 -> 1050 | F39: less production costs | G39: =K37 -> 85.5 | H39: less finance costs | J39: = | K39: =SUM(C39-E39-G39-I39) -> 214.5 | L39: per head
B41: Gross margin income (per mob) | C41: =C39*C35 -> 133650 | D41: less buy in price | E41: =E39*C11 -> 105000 | F41: less production costs | G41: =G39*C35 -> 8464.5 | H41: less finance costs | I41: =I39*C11 -> 0 | J41: = | K41: =SUM(C41-E41-G41-I41) -> 20185.5 | L41: per mob
B43: Additional considerations
B44: This margin does not include any transport and sales commission costs.
B46: Ensure the average liveweight gain of your animals is realistic and achievable, relative to feed quality and quatity (<2.0kg/day). Your liveweight gain is highlighted in orange, so you can quickly check it.
B48: Compostion and cost of diet is calculated based on kg dry matter intake per day per head. The pale green cells ("your $/kg DM") are linked to the Feed Cost Calculator. Either use the Feed Cost Calculator to determine your own feed costs, or
B49: average feed costs will be used (grey cells, "average $/kg DM")
B51: Total daily feed requirement MUST be the same value as total daily allocation. If animals are underfed, liveweight gain and selling date will not be reached. If animals are overfed, the gross margins will not be accurate
B52: and animals may fall outside market specs, resulting in price penalties.
B54: Be aware and understand the opportunity cost of finishing animals and the negative impact this may have on total feed availability on your property, and feed allocations to other animals (e.g. the breeding herd)
B56: Are you sure about the sell price ?
B58: What happens if your feed cost increases ?
B60: What if some of the animals die? Have you considered a mortality percentage when entering the number of animals that will be finished into the balance sheet?

Sheet Sheep Marginal Profit Demo
B1: Sheep Trading Marginal Profit Calculator Demo - sell now or sell later
B4: To use this tool, insert your own figures into the green boxes. Figures highlighted in the yellow boxes will be automatically calculated for you.
B5: In the composition and cost of diet table, the pale green cells ("your $/kg DM") are linked to the Feed Cost Calculator. Either use the Feed Cost Calculator to determine your own feed costs, or
B6: average feed costs will be used (the grey cells, "average $/kg DM")
B8: Sell Now
B9: Current live weight | C9: 35 | D9: x price $/kg LW | E9: 3.5 | F9: = | G9: =C9*E9 -> 122.5 | H9: per head
B10: Sell now date | C10: 2018-03-02
B11: Number of animals | C11: 100 | G11: =G9*C11 -> 12250 | H11: mob value
B13: Weight Gain
B14: Number of days to sale if selling later | C14: 60 | D14: days
B15: Sell later date | C15: =C10+C14 -> 2018-05-01
B16: Target weight at sale | C16: 50 | D16: kg LW/head
B17: Average weight now | C17: =C9 -> 35 | D17: kg LW/head
B18: Average liveweight gain | C18: =SUM((C16-C17)/C14) -> 0.25 | D18: kg LWG/day
B19: Average daily feed requirement per head | C19: =K24 -> 1.85 | D19: kg DM/hd/day
B21: Composition and Cost of Diet | C21: kg DM/day | D21: your $/kg DM | E21: average $/kg DM | F21: $/day/head | J21: Average Daily Feed Requirements | K21: kg DM/hd/day
B22: Dryland pasture | D22: 0.02 | E22: 0.02 | F22: =IF(D22>0,D22*C22,E22*C22) -> 0 | H22: Maintenance | K22: =(((C16/2)+(C17/2))*2)/100 -> 0.85
B23: Dryland pasture + N fert | D23: =D22+'Feed Cost Calc'!K21 -> 0.02 | E23: 0.17 | F23: =IF(D23>0,D23*C23,E23*C23) -> 0 | H23: LWG | K23: =C18*4 -> 1
B24: Irrigated pasture | C24: 2.1 | D24: ='Feed Cost Calc'!G42 -> 0 | E24: 0.12 | F24: =IF(D24>0,D24*C24,E24*C24) -> 0.252 | H24: Total Daily Requirement | K24: =SUM(K22:K23) -> 1.85
B25: Irrigated pasture + N fert | D25: ='Feed Cost Calc'!G42+'Feed Cost Calc'!K21 -> 0 | E25: 0.29 | F25: =C25*E25 -> 0
B26: Brassica crop | D26: ='Feed Cost Calc'!C67 -> 0 | E26: 0.15 | F26: =C26*E26 -> 0
B27: Grain/pellets | D27: ='Feed Cost Calc'!K38 -> 0 | E27: 0.35 | F27: =C27*E27 -> 0
B28: Hay | D28: ='Feed Cost Calc'!G24 -> 0 | E28: 0.35 | F28: =C28*E28 -> 0
B29: Silage | D29: ='Feed Cost Calc'!C24 -> 0 | E29: 0.6 | F29: =C29*E29 -> 0
B30: Total daily allocation | C30: =SUM(C22:C29) -> 2.1 | F30: =SUM(F22:F29) -> 0.252
B32: Balance Sheet
B33: Income
B34: Liveweight | C34: =C16 -> 50 | D34: x price $/kg LW | E34: 5.5 | F34: = | G34: =C34*E34 -> 275 | H34: per head
B35: Number of animals finished | C35: 95
B36: Production Cost
B37: Number of days to sale | C37: =C14 -> 60 | D37: x feed cost $/head/day | E37: =F30 -> 0.252 | F37: plus additional labour ($/head) | H37: plus additional animal health ($/head) | L37: = | M37: =(E37*C37)+I37+G37 -> 15.12 | N37: per head
B38: Margin
B39: Gross margin income (per head) | C39: =G34 -> 275 | D39: less buy in price | E39: =G9 -> 122.5 | F39: less production costs | G39: =M37 -> 15.12 | H39: less finance costs | J39: plus skin value | K39: 1.25 | L39: = | M39: =(C39-(E39+G39+I39))+K39 -> 138.63 | N39: per head
B41: Gross margin income (per mob) | C41: =C39*C35 -> 26125 | D41: less buy in price | E41: =E39*C11 -> 12250 | F41: less production costs | G41: =G39*C35 -> 1436.4 | H41: less finance costs | I41: =I39*C11 -> 0 | J41: plus skin value | K41: =K39*C35 -> 118.75 | L41: = | M41: =(C41-(E41+G41+I41))+K41 -> 12557.35 | N41: per mob
B43: Additional considerations
B44: This margin does not include any transport and sales commission costs.
B46: Ensure the average liveweight gain of your animals is realistic and achievable, relative to feed quality and quatity (<0.4kg/day). Your liveweight gain is highlighted in orange, so you can quickly check it.
B48: Compostion and cost of diet is calculated based on kg dry matter intake per day per head. The pale green cells ("your $/kg DM") are linked to the Feed Cost Calculator. Either use the Feed Cost Calculator to determine your own feed costs, or
B49: average feed costs will be used (grey cells, "average $/kg DM")
B51: Total daily feed requirement MUST be the same value as total daily allocation. If animals are underfed, liveweight gain and selling date will not be reached. If animals are overfed, the gross margins will not be accurate
B52: and animals may fall outside market specs, resulting in price penalties.
B54: Be aware and understand the opportunity cost of finishing animals and the negative impact this may have on total feed availability on your property, and feed allocations to other animals (e.g. the breeding herd)
B56: Are you sure about the sell price ?
B58: What happens if your feed cost increases ?
B60: What if some of the animals die? Have you considered a mortality percentage when entering the number of animals that will be finished into the balance sheet?

Sheet Drop box definitions (hidden)
A2: Livestock type | B2: Beef cattle
B3: Dairy cattle - milking
B4: Dairy cattle - dry
B5: Sheep - lambs
B6: Sheep - ewes (dry), wethers etc…
A10: Forage crop type | B10: Fodder radish
B11: Kale
B12: Leafy turnip
B13: Rape
B14: Swede
B15: Turnip
A17: Multi graze crop type | B17: Foder radish
B18: Leafy turnip
B19: Rape
A21: Multiple Grazing Option | B21: Yes
B22: No
A24: Grazing efficiency | B24: 0.5
B25: 0.55
B26: 0.6
B27: 0.65
B28: 0.7
B29: 0.75
B30: 0.8
B31: 0.85
B32: 0.9
B33: 0.95
B34: 1
A36: Daily feed requirements | B36: 0.5
B37: 1
B38: 1.5
B39: 2
B40: 2.5
B41: 3
B42: 3.5
B43: 4
B44: 4.5
B45: 5
B46: 5.5
B47: 6
B48: 6.5
B49: 7
B50: 7.5
B51: 8
B52: 8.5
B53: 9
B54: 9.5
B55: 10
B56: 10.5
B57: 11
B58: 11.5
B59: 12
B60: 12.5
B61: 13
B62: 13.5
B63: 14
B64: 14.5
B65: 15
